[Event "Grandmaster Tournament Rapid"]
[Site "Biel/Bienne, Switzerland"]
[Date "2019.07.21"]
[Round "1.1"]
[White "Bogner, Sebastian"]
[Black "Leko, Peter"]
[Result "1/2-1/2"]
[ECO "D41"]
[WhiteElo "2584"]
[BlackElo "2674"]
[PlyCount "73"]
[EventDate "2019.??.??"]
[EventType "rapid"]
[TimeControl "15+5"]
[WhiteClock "0:02:45"]
[BlackClock "0:01:38"]

1. d4 {[%emt 0:00:00]} Nf6 {[%emt 0:00:00]} 2. c4 {[%emt 0:00:00]} e6 {[%emt 0:
00:00]} 3. Nf3 {[%emt 0:00:00]} d5 {[%emt 0:00:00]} 4. Nc3 {[%emt 0:00:00]} c5
{[%emt 0:00:00]} 5. cxd5 {[%emt 0:00:00]} Nxd5 {[%emt 0:00:00]} 6. e4 {[%emt 0:
00:00]} Nxc3 {[%emt 0:00:00]} 7. bxc3 {[%emt 0:00:00]} cxd4 {[%emt 0:00:00]} 8.
cxd4 {[%emt 0:00:00]} Bb4+ {[%emt 0:00:00]} 9. Bd2 {[%emt 0:00:00]} Bxd2+ {
[%emt 0:00:00]} 10. Qxd2 {[%emt 0:00:00]} O-O {[%emt 0:00:00]} 11. Bc4 {
[%emt 0:00:00]} Nd7 {[%emt 0:00:00]} 12. O-O {[%emt 0:00:00]} b6 {[%emt 0:00:
00]} 13. Rfe1 {[%emt 0:00:00]} Bb7 {[%emt 0:00:00]} 14. Rad1 {[%emt 0:00:00]}
Rc8 {[%emt 0:00:00]} 15. Bb3 {[%emt 0:00:00]} h6 {[%emt 0:00:00]} 16. h3 {
[%emt 0:00:00]} Nf6 {[%emt 0:00:00]} 17. Qf4 {[%emt 0:00:00]} Qc7 {[%emt 0:00:
00]} 18. Qxc7 {[%emt 0:00:00]} Rxc7 {[%emt 0:00:00]} 19. d5 {[%emt 0:00:00]}
exd5 {[%emt 0:00:00]} 20. exd5 {[%emt 0:00:00]} Rd7 {[%emt 0:00:00]} 21. Ne5 {
[%emt 0:00:00]} Rd6 {[%emt 0:00:00]} 22. Nc6 {[%emt 0:00:00]} Bxc6 {[%emt 0:00:
00]} 23. dxc6 {[%emt 0:00:00]} Rxc6 {[%emt 0:00:00]} 24. Re7 {[%emt 0:00:00]}
a6 {[%emt 0:00:00]} 25. Rxf7 {[%emt 0:00:00]} Rxf7 {[%emt 0:00:00]} 26. Rd8+ {
[%emt 0:00:00]} Kh7 {[%emt 0:00:00]} 27. Bxf7 {[%emt 0:00:00]} b5 {[%emt 0:00:
00]} 28. f4 {[%emt 0:00:00]} g5 {[%emt 0:00:00]} 29. fxg5 {[%emt 0:00:00]} hxg5
{[%emt 0:00:00]} 30. Bb3 {[%emt 0:00:00]} a5 {[%emt 0:00:00]} 31. Rd4 {[%emt 0:
00:00]} Kg7 {[%emt 0:00:00]} 32. Kf2 {[%emt 0:00:00]} Rc3 {[%emt 0:00:00]} 33.
Ke2 {[%emt 0:00:26]} Rg3 {[%emt 0:00:48]} 34. Kf2 {[%emt 0:00:07]} Rc3 {
[%emt 0:00:01]} 35. Ke2 {[%emt 0:00:01]} Rg3 {[%emt 0:00:47]} 36. Kf2 {[%emt 0:
00:00]} Rc3 {[%emt 0:00:01]} 37. Ke2 {[%emt 0:00:01]} 1/2-1/2

[Event "Grandmaster Tournament Rapid"]
[Site "Biel/Bienne, Switzerland"]
[Date "2019.07.21"]
[Round "1.2"]
[White "Shankland, Sam"]
[Black "Georgiadis, Nico"]
[Result "1-0"]
[ECO "D38"]
[WhiteElo "2713"]
[BlackElo "2514"]
[PlyCount "89"]
[EventDate "2019.??.??"]
[EventType "rapid"]
[TimeControl "15+5"]
[WhiteClock "0:01:25"]
[BlackClock "0:00:07"]

1. d4 {[%emt 0:00:00]} Nf6 {[%emt 0:00:00]} 2. c4 {[%emt 0:00:00]} e6 {[%emt 0:
00:00]} 3. Nf3 {[%emt 0:00:00]} d5 {[%emt 0:00:00]} 4. Nc3 {[%emt 0:00:00]} Bb4
{[%emt 0:00:00]} 5. Qa4+ {[%emt 0:00:00]} Nc6 {[%emt 0:00:00]} 6. Bd2 {[%emt 0:
00:00]} O-O {[%emt 0:00:00]} 7. a3 {[%emt 0:00:00]} Bxc3 {[%emt 0:00:00]} 8.
Bxc3 {[%emt 0:00:00]} Bd7 {[%emt 0:00:00]} 9. Qb3 {[%emt 0:00:00]} dxc4 {
[%emt 0:00:00]} 10. Qxc4 {[%emt 0:00:00]} Ne4 {[%emt 0:00:00]} 11. e3 {[%emt 0:
00:00]} Ne7 {[%emt 0:00:00]} 12. Be2 {[%emt 0:00:00]} Bc6 {[%emt 0:00:00]} 13.
O-O {[%emt 0:00:00]} Bd5 {[%emt 0:00:00]} 14. Qd3 {[%emt 0:00:00]} b6 {[%emt 0:
00:00]} 15. b4 {[%emt 0:00:00]} c5 {[%emt 0:00:00]} 16. dxc5 {[%emt 0:00:00]}
bxc5 {[%emt 0:00:00]} 17. bxc5 {[%emt 0:00:00]} Rc8 {[%emt 0:00:00]} 18. Rad1 {
[%emt 0:00:00]} Qc7 {[%emt 0:00:00]} 19. Bd4 {[%emt 0:00:00]} Nxc5 {[%emt 0:00:
00]} 20. Qb5 {[%emt 0:00:00]} Ne4 {[%emt 0:00:00]} 21. Qa4 {[%emt 0:00:00]} Nc3
{[%emt 0:00:00]} 22. Bxc3 {[%emt 0:00:00]} Qxc3 {[%emt 0:00:00]} 23. Nd4 {
[%emt 0:00:00]} Qc5 {[%emt 0:00:00]} 24. Rb1 {[%emt 0:00:00]} Rfd8 {[%emt 0:00:
00]} 25. h3 {[%emt 0:00:00]} e5 {[%emt 0:00:28]} 26. Nf3 {[%emt 0:00:00]} Bc6 {
[%emt 0:00:13]} 27. Qa6 {[%emt 0:00:00]} Bxf3 {[%emt 0:01:01]} 28. Bxf3 {
[%emt 0:00:00]} Rd6 {[%emt 0:00:03]} 29. Qa4 {[%emt 0:00:00]} g6 {[%emt 0:00:
10]} 30. Rb5 {[%emt 0:00:00]} Qc4 {[%emt 0:00:34]} 31. Qxc4 {[%emt 0:00:05]}
Rxc4 {[%emt 0:00:01]} 32. Rxe5 {[%emt 0:00:01]} Nc6 {[%emt 0:00:01]} 33. Re8+ {
[%emt 0:00:09]} Kg7 {[%emt 0:00:01]} 34. Rb1 {[%emt 0:00:02]} Ra4 {[%emt 0:00:
17]} 35. Rc1 {[%emt 0:00:48]} Nd8 {[%emt 0:00:12]} 36. Rc3 {[%emt 0:00:10]} Ne6
{[%emt 0:00:01]} 37. Re7 {[%emt 0:00:27]} Rda6 {[%emt 0:00:08]} 38. Bd5 {
[%emt 0:00:17]} Kf6 {[%emt 0:00:03]} 39. Rb7 {[%emt 0:00:17]} Rxa3 {[%emt 0:00:
01]} 40. Rc8 {[%emt 0:00:01]} Rd3 {[%emt 0:00:08]} 41. Bxe6 {[%emt 0:00:04]}
Rxe6 {[%emt 0:00:08]} 42. Rcc7 {[%emt 0:00:01]} Kg5 {[%emt 0:00:07]} 43. Rxf7 {
[%emt 0:00:05]} h5 {[%emt 0:00:06]} 44. Rxa7 {[%emt 0:00:03]} h4 {[%emt 0:00:
05]} 45. f4+ {[%emt 0:00:09]} 1-0

[Event "Grandmaster Tournament Rapid"]
[Site "Biel/Bienne, Switzerland"]
[Date "2019.07.21"]
[Round "1.3"]
[White "Cori, Jorge"]
[Black "Vidit, Santosh"]
[Result "1-0"]
[ECO "D32"]
[WhiteElo "2686"]
[BlackElo "2703"]
[PlyCount "75"]
[EventDate "2019.??.??"]
[EventType "rapid"]
[TimeControl "15+5"]
[WhiteClock "0:00:21"]
[BlackClock "0:00:10"]

1. d4 {[%emt 0:00:00]} Nf6 {[%emt 0:00:00]} 2. Nf3 {[%emt 0:00:00]} d5 {
[%emt 0:00:00]} 3. c4 {[%emt 0:00:00]} e6 {[%emt 0:00:00]} 4. e3 {[%emt 0:00:
00]} a6 {[%emt 0:00:00]} 5. Nc3 {[%emt 0:00:00]} c5 {[%emt 0:00:00]} 6. cxd5 {
[%emt 0:00:00]} exd5 {[%emt 0:00:00]} 7. Be2 {[%emt 0:00:00]} Nc6 {[%emt 0:00:
00]} 8. O-O {[%emt 0:00:00]} cxd4 {[%emt 0:00:00]} 9. Nxd4 {[%emt 0:00:00]} Bd6
{[%emt 0:00:00]} 10. b3 {[%emt 0:00:00]} O-O {[%emt 0:00:00]} 11. Bb2 {[%emt 0:
00:00]} Re8 {[%emt 0:00:00]} 12. Rc1 {[%emt 0:00:00]} Bc7 {[%emt 0:00:00]} 13.
Nxc6 {[%emt 0:00:00]} bxc6 {[%emt 0:00:00]} 14. Ba3 {[%emt 0:00:00]} h5 {
[%emt 0:00:00]} 15. Bf3 {[%emt 0:00:00]} Ng4 {[%emt 0:00:00]} 16. g3 {[%emt 0:
00:00]} Bf5 {[%emt 0:00:00]} 17. Ne2 {[%emt 0:00:00]} Ne5 {[%emt 0:00:00]} 18.
Bg2 {[%emt 0:00:00]} h4 {[%emt 0:00:00]} 19. Nd4 {[%emt 0:00:00]} Bd7 {[%emt 0:
00:00]} 20. f4 {[%emt 0:00:30]} h3 {[%emt 0:00:00]} 21. fxe5 {[%emt 0:00:54]}
hxg2 {[%emt 0:00:00]} 22. Kxg2 {[%emt 0:00:18]} Bxe5 {[%emt 0:01:54]} 23. Nxc6
{[%emt 0:00:09]} Bxc6 {[%emt 0:00:02]} 24. Rxc6 {[%emt 0:00:01]} Qa5 {[%emt 0:
00:06]} 25. Qc1 {[%emt 0:00:02]} d4 {[%emt 0:00:07]} 26. e4 {[%emt 0:00:13]} d3
{[%emt 0:00:07]} 27. Rc5 {[%emt 0:00:01]} Qb6 {[%emt 0:00:05]} 28. Qc4 {
[%emt 0:00:03]} Qg6 {[%emt 0:00:07]} 29. Qxd3 {[%emt 0:00:02]} Rad8 {[%emt 0:
00:01]} 30. Rd5 {[%emt 0:00:02]} Bf6 {[%emt 0:00:08]} 31. Rxd8 {[%emt 0:00:25]}
Rxd8 {[%emt 0:00:01]} 32. Qe2 {[%emt 0:00:01]} Re8 {[%emt 0:00:08]} 33. Rf4 {
[%emt 0:00:07]} Bg5 {[%emt 0:00:04]} 34. Rf2 {[%emt 0:00:04]} Rxe4 {[%emt 0:00:
02]} 35. Qf3 {[%emt 0:00:04]} Qe6 {[%emt 0:00:10]} 36. Bc5 {[%emt 0:00:04]} g6
{[%emt 0:00:04]} 37. b4 {[%emt 0:00:01]} Be3 {[%emt 0:00:04]} 38. Re2 {[%emt 0:
00:03]} 1-0

[Event "Grandmaster Tournament Rapid"]
[Site "Biel/Bienne, Switzerland"]
[Date "2019.07.21"]
[Round "1.4"]
[White "Maghsoodloo, Parham"]
[Black "Abdusattorov, Nodirbek"]
[Result "1-0"]
[ECO "C65"]
[WhiteElo "2656"]
[BlackElo "2598"]
[PlyCount "183"]
[EventDate "2019.??.??"]
[EventType "rapid"]
[TimeControl "15+5"]
[WhiteClock "0:00:26"]
[BlackClock "0:00:09"]

1. e4 {[%emt 0:00:00]} e5 {[%emt 0:00:00]} 2. Nf3 {[%emt 0:00:00]} Nc6 {
[%emt 0:00:00]} 3. Bb5 {[%emt 0:00:00]} Nf6 {[%emt 0:00:00]} 4. d3 {[%emt 0:00:
00]} d6 {[%emt 0:00:00]} 5. c3 {[%emt 0:00:00]} Bd7 {[%emt 0:00:00]} 6. a4 {
[%emt 0:00:00]} g6 {[%emt 0:00:00]} 7. O-O {[%emt 0:00:00]} Bg7 {[%emt 0:00:00]
} 8. Re1 {[%emt 0:00:00]} O-O {[%emt 0:00:00]} 9. Nbd2 {[%emt 0:00:00]} Qe8 {
[%emt 0:00:00]} 10. Nf1 {[%emt 0:00:00]} Nh5 {[%emt 0:00:00]} 11. Ne3 {[%emt 0:
00:00]} f5 {[%emt 0:00:00]} 12. Nd5 {[%emt 0:00:00]} Rc8 {[%emt 0:00:00]} 13.
exf5 {[%emt 0:00:00]} gxf5 {[%emt 0:00:00]} 14. d4 {[%emt 0:00:00]} e4 {
[%emt 0:00:00]} 15. Ng5 {[%emt 0:00:00]} Kh8 {[%emt 0:00:00]} 16. f3 {[%emt 0:
00:00]} h6 {[%emt 0:00:00]} 17. fxe4 {[%emt 0:00:00]} hxg5 {[%emt 0:00:00]} 18.
exf5 {[%emt 0:00:00]} Qf7 {[%emt 0:00:00]} 19. Ne7 {[%emt 0:00:00]} Nxe7 {
[%emt 0:00:33]} 20. Bxd7 {[%emt 0:00:00]} Nf4 {[%emt 0:00:39]} 21. Bxf4 {
[%emt 0:00:00]} gxf4 {[%emt 0:00:04]} 22. Rxe7 {[%emt 0:00:00]} Qxe7 {[%emt 0:
00:07]} 23. Qh5+ {[%emt 0:00:00]} Kg8 {[%emt 0:00:00]} 24. Be6+ {[%emt 0:00:00]
} Rf7 {[%emt 0:00:01]} 25. Bxc8 {[%emt 0:00:00]} Qe3+ {[%emt 0:00:01]} 26. Kf1
{[%emt 0:00:16]} f3 {[%emt 0:00:31]} 27. Qxf3 {[%emt 0:00:07]} Qxf3+ {[%emt 0:
00:07]} 28. gxf3 {[%emt 0:00:02]} Kf8 {[%emt 0:00:08]} 29. Bxb7 {[%emt 0:00:19]
} c5 {[%emt 0:00:10]} 30. Bd5 {[%emt 0:00:51]} Rxf5 {[%emt 0:00:01]} 31. Be4 {
[%emt 0:00:01]} Rh5 {[%emt 0:00:01]} 32. dxc5 {[%emt 0:00:02]} Rxh2 {[%emt 0:
00:24]} 33. Kg1 {[%emt 0:00:13]} Rxb2 {[%emt 0:00:02]} 34. cxd6 {[%emt 0:00:02]
} Bxc3 {[%emt 0:00:05]} 35. Rc1 {[%emt 0:00:04]} Bd4+ {[%emt 0:00:05]} 36. Kh1
{[%emt 0:00:48]} Bb6 {[%emt 0:00:06]} 37. Rc8+ {[%emt 0:00:22]} Kf7 {[%emt 0:
00:01]} 38. d7 {[%emt 0:00:01]} Rd2 {[%emt 0:00:01]} 39. Bc6 {[%emt 0:00:11]}
Kf6 {[%emt 0:00:05]} 40. Rg8 {[%emt 0:00:07]} Rd6 {[%emt 0:00:12]} 41. Bb5 {
[%emt 0:00:01]} Ke5 {[%emt 0:00:08]} 42. Kg2 {[%emt 0:00:03]} a6 {[%emt 0:00:
02]} 43. Bxa6 {[%emt 0:00:08]} Rxd7 {[%emt 0:00:01]} 44. Rg5+ {[%emt 0:00:03]}
Kf6 {[%emt 0:00:02]} 45. Rb5 {[%emt 0:00:02]} Bc7 {[%emt 0:00:03]} 46. Bb7 {
[%emt 0:00:08]} Rd2+ {[%emt 0:00:05]} 47. Kf1 {[%emt 0:00:04]} Ra2 {[%emt 0:00:
03]} 48. Rc5 {[%emt 0:00:05]} Bd6 {[%emt 0:00:06]} 49. Rd5 {[%emt 0:00:05]} Bc7
{[%emt 0:00:06]} 50. Rd7 {[%emt 0:00:03]} Be5 {[%emt 0:00:08]} 51. Bc6 {
[%emt 0:00:11]} Kg5 {[%emt 0:00:01]} 52. Rf7 {[%emt 0:00:03]} Bf4 {[%emt 0:00:
16]} 53. Bd7 {[%emt 0:00:02]} Be3 {[%emt 0:00:02]} 54. Rf5+ {[%emt 0:00:08]}
Kg6 {[%emt 0:00:02]} 55. Re5 {[%emt 0:00:05]} Ba7 {[%emt 0:00:03]} 56. Ke1 {
[%emt 0:00:08]} Kf6 {[%emt 0:00:03]} 57. Rd5 {[%emt 0:00:04]} Be3 {[%emt 0:00:
08]} 58. Kd1 {[%emt 0:00:02]} Bf2 {[%emt 0:00:07]} 59. Rd2 {[%emt 0:00:06]}
Ra1+ {[%emt 0:00:05]} 60. Ke2 {[%emt 0:00:01]} Bc5 {[%emt 0:00:04]} 61. Kd3 {
[%emt 0:00:09]} Ke7 {[%emt 0:00:07]} 62. Bb5 {[%emt 0:00:03]} Bd6 {[%emt 0:00:
08]} 63. Ke4 {[%emt 0:00:06]} Re1+ {[%emt 0:00:09]} 64. Re2 {[%emt 0:00:02]}
Rd1 {[%emt 0:00:03]} 65. Ra2 {[%emt 0:00:11]} Rb1 {[%emt 0:00:04]} 66. Bc4 {
[%emt 0:00:08]} Re1+ {[%emt 0:00:06]} 67. Be2 {[%emt 0:00:02]} Bc7 {[%emt 0:00:
02]} 68. Kd3 {[%emt 0:00:03]} Ba5 {[%emt 0:00:01]} 69. f4 {[%emt 0:00:02]} Kf6
{[%emt 0:00:02]} 70. Ke4 {[%emt 0:00:02]} Rb1 {[%emt 0:00:02]} 71. Rc2 {
[%emt 0:00:02]} Rb4+ {[%emt 0:00:03]} 72. Rc4 {[%emt 0:00:02]} Rb6 {[%emt 0:00:
02]} 73. Rc5 {[%emt 0:00:01]} Bd2 {[%emt 0:00:13]} 74. Rf5+ {[%emt 0:00:12]}
Ke7 {[%emt 0:00:03]} 75. Bb5 {[%emt 0:00:05]} Rh6 {[%emt 0:00:11]} 76. Rd5 {
[%emt 0:00:02]} Bc3 {[%emt 0:00:05]} 77. Bc4 {[%emt 0:00:07]} Rh1 {[%emt 0:00:
07]} 78. a5 {[%emt 0:00:08]} Ra1 {[%emt 0:00:07]} 79. a6 {[%emt 0:00:02]} Be1 {
[%emt 0:00:02]} 80. f5 {[%emt 0:00:09]} Bf2 {[%emt 0:00:04]} 81. Rd2 {[%emt 0:
00:05]} Bg1 {[%emt 0:00:06]} 82. Rg2 {[%emt 0:00:02]} Re1+ {[%emt 0:00:08]} 83.
Kd5 {[%emt 0:00:06]} Kf6 {[%emt 0:00:05]} 84. Bd3 {[%emt 0:00:06]} Rd1 {
[%emt 0:00:05]} 85. Rg6+ {[%emt 0:00:04]} Kf7 {[%emt 0:00:02]} 86. Kc4 {
[%emt 0:00:11]} Bf2 {[%emt 0:00:03]} 87. Rg2 {[%emt 0:00:08]} Bg1 {[%emt 0:00:
09]} 88. Rb2 {[%emt 0:00:01]} Ra1 {[%emt 0:00:03]} 89. Rb1 {[%emt 0:00:02]}
Rxb1 {[%emt 0:00:12]} 90. Bxb1 {[%emt 0:00:01]} Ke7 91. Kd5 {[%emt 0:00:01]}
Kd7 {[%emt 0:00:08]} 92. f6 {[%emt 0:00:06]} 1-0

[Event "Grandmaster Tournament Rapid"]
[Site "Biel/Bienne, Switzerland"]
[Date "2019.07.21"]
[Round "2.1"]
[White "Maghsoodloo, Parham"]
[Black "Bogner, Sebastian"]
[Result "1-0"]
[ECO "C42"]
[WhiteElo "2656"]
[BlackElo "2584"]
[PlyCount "124"]
[EventDate "2019.??.??"]
[EventType "rapid"]
[TimeControl "15+5"]
[WhiteClock "0:01:21"]
[BlackClock "0:00:10"]

1. e4 {[%emt 0:00:00]} e5 {[%emt 0:00:00]} 2. Nf3 {[%emt 0:00:00]} Nf6 {
[%emt 0:00:00]} 3. Nxe5 {[%emt 0:00:00]} d6 {[%emt 0:00:00]} 4. Nf3 {[%emt 0:
00:00]} Nxe4 {[%emt 0:00:00]} 5. Nc3 {[%emt 0:00:00]} Nxc3 {[%emt 0:00:00]} 6.
dxc3 {[%emt 0:00:00]} Be7 {[%emt 0:00:00]} 7. Be3 {[%emt 0:00:00]} Nc6 {
[%emt 0:00:00]} 8. Qd2 {[%emt 0:00:00]} Be6 {[%emt 0:00:00]} 9. O-O-O {[%emt 0:
00:00]} Qd7 {[%emt 0:00:00]} 10. Kb1 {[%emt 0:00:00]} Bf6 {[%emt 0:00:00]} 11.
h4 {[%emt 0:00:00]} h6 {[%emt 0:00:00]} 12. a3 {[%emt 0:00:00]} a6 {[%emt 0:00:
00]} 13. Be2 {[%emt 0:00:00]} O-O-O {[%emt 0:00:00]} 14. Nd4 {[%emt 0:00:00]}
Nxd4 {[%emt 0:00:00]} 15. Bxd4 {[%emt 0:00:00]} Bxd4 {[%emt 0:00:00]} 16. Qxd4
{[%emt 0:00:00]} Rhg8 {[%emt 0:00:00]} 17. Qa7 {[%emt 0:00:00]} c6 {[%emt 0:00:
00]} 18. h5 {[%emt 0:00:00]} Qc7 {[%emt 0:00:00]} 19. Rh4 {[%emt 0:00:00]} Qb8
{[%emt 0:00:00]} 20. Qe3 {[%emt 0:00:00]} Qc7 {[%emt 0:00:00]} 21. c4 {[%emt 0:
00:00]} Kb8 {[%emt 0:00:00]} 22. Bf3 {[%emt 0:00:00]} Rge8 {[%emt 0:00:00]} 23.
Qc3 {[%emt 0:00:00]} f6 {[%emt 0:00:00]} 24. Rhd4 {[%emt 0:00:00]} Bf7 {
[%emt 0:00:00]} 25. b3 {[%emt 0:00:00]} Re5 {[%emt 0:00:00]} 26. g4 {[%emt 0:
00:00]} Qe7 {[%emt 0:00:00]} 27. Qd2 {[%emt 0:00:00]} Kc7 {[%emt 0:00:00]} 28.
a4 {[%emt 0:00:00]} Be8 {[%emt 0:00:00]} 29. Ka2 {[%emt 0:00:00]} Bf7 {[%emt 0:
00:00]} 30. Qf4 {[%emt 0:00:00]} Bg8 {[%emt 0:00:00]} 31. R4d2 {[%emt 0:00:00]}
Bh7 {[%emt 0:00:00]} 32. Qd4 {[%emt 0:00:00]} Be4 {[%emt 0:00:07]} 33. Qc3 {
[%emt 0:00:00]} Bxf3 {[%emt 0:00:18]} 34. Qxf3 {[%emt 0:00:00]} Qe6 {[%emt 0:
00:01]} 35. Qg3 {[%emt 0:00:00]} Rd7 {[%emt 0:00:50]} 36. f3 {[%emt 0:00:00]}
Rd8 {[%emt 0:00:02]} 37. Qh2 {[%emt 0:00:00]} Rd7 {[%emt 0:00:12]} 38. Qg3 {
[%emt 0:00:52]} Rd8 {[%emt 0:00:01]} 39. Kb1 {[%emt 0:00:02]} Rd7 {[%emt 0:00:
01]} 40. Rd3 {[%emt 0:00:07]} Re3 {[%emt 0:00:14]} 41. c5 {[%emt 0:00:17]} Rxd3
42. Rxd3 {[%emt 0:00:01]} Qe5 {[%emt 0:00:08]} 43. cxd6+ {[%emt 0:00:02]} Rxd6
{[%emt 0:00:04]} 44. Qxe5 {[%emt 0:00:06]} fxe5 {[%emt 0:00:01]} 45. Re3 {
[%emt 0:00:16]} Rd1+ {[%emt 0:00:04]} 46. Kb2 {[%emt 0:00:01]} Kd6 {[%emt 0:00:
01]} 47. Kc3 {[%emt 0:00:05]} Kd5 {[%emt 0:00:21]} 48. a5 {[%emt 0:01:01]} Ra1
{[%emt 0:00:08]} 49. Rd3+ {[%emt 0:00:08]} Ke6 {[%emt 0:00:04]} 50. Kb4 {
[%emt 0:00:03]} c5+ {[%emt 0:00:35]} 51. Kxc5 {[%emt 0:00:02]} Rxa5+ {[%emt 0:
00:01]} 52. Kb6 {[%emt 0:00:00]} Rb5+ {[%emt 0:00:02]} 53. Kc7 {[%emt 0:00:08]}
a5 {[%emt 0:00:27]} 54. c4 {[%emt 0:00:12]} Rb4 {[%emt 0:00:57]} 55. Rd6+ {
[%emt 0:00:02]} Ke7 {[%emt 0:00:05]} 56. Rb6 {[%emt 0:00:02]} Rxb6 {[%emt 0:00:
05]} 57. Kxb6 {[%emt 0:00:02]} Kd6 {[%emt 0:00:03]} 58. Kxb7 {[%emt 0:00:27]}
Kc5 {[%emt 0:00:01]} 59. Ka6 {[%emt 0:00:01]} Kb4 {[%emt 0:00:02]} 60. c5 {
[%emt 0:00:01]} Kxc5 {[%emt 0:00:12]} 61. Kxa5 {[%emt 0:00:01]} Kd4 {[%emt 0:
00:03]} 62. b4 {[%emt 0:00:15]} Kd5 {[%emt 0:00:02]} 1-0

[Event "Grandmaster Tournament Rapid"]
[Site "Biel/Bienne, Switzerland"]
[Date "2019.07.21"]
[Round "2.2"]
[White "Abdusattorov, Nodirbek"]
[Black "Cori, Jorge"]
[Result "0-1"]
[ECO "B33"]
[WhiteElo "2598"]
[BlackElo "2686"]
[PlyCount "104"]
[EventDate "2019.??.??"]
[EventType "rapid"]
[TimeControl "15+5"]
[WhiteClock "0:00:13"]
[BlackClock "0:00:15"]

1. e4 {[%emt 0:00:00]} c5 {[%emt 0:00:00]} 2. Nf3 {[%emt 0:00:00]} Nc6 {
[%emt 0:00:00]} 3. d4 {[%emt 0:00:00]} cxd4 {[%emt 0:00:00]} 4. Nxd4 {[%emt 0:
00:00]} e5 {[%emt 0:00:00]} 5. Nb5 {[%emt 0:00:00]} d6 {[%emt 0:00:00]} 6. N1c3
{[%emt 0:00:00]} a6 {[%emt 0:00:00]} 7. Na3 {[%emt 0:00:00]} b5 {[%emt 0:00:00]
} 8. Nd5 {[%emt 0:00:00]} Nf6 {[%emt 0:00:00]} 9. Bg5 {[%emt 0:00:00]} Be7 {
[%emt 0:00:00]} 10. Bxf6 {[%emt 0:00:00]} Bxf6 {[%emt 0:00:00]} 11. c4 {
[%emt 0:00:00]} b4 {[%emt 0:00:00]} 12. Nc2 {[%emt 0:00:00]} Rb8 {[%emt 0:00:
00]} 13. b3 {[%emt 0:00:00]} O-O {[%emt 0:00:00]} 14. h4 {[%emt 0:00:00]} Be6 {
[%emt 0:00:00]} 15. g3 {[%emt 0:00:00]} a5 {[%emt 0:00:00]} 16. Bh3 {[%emt 0:
00:00]} Be7 {[%emt 0:00:00]} 17. Kf1 {[%emt 0:00:00]} Qd7 {[%emt 0:00:00]} 18.
Kg2 {[%emt 0:00:00]} Bd8 {[%emt 0:00:00]} 19. Qd3 {[%emt 0:00:00]} Qa7 {
[%emt 0:00:00]} 20. Rad1 {[%emt 0:00:00]} Qc5 {[%emt 0:00:00]} 21. h5 {[%emt 0:
00:00]} Bxd5 {[%emt 0:00:00]} 22. cxd5 {[%emt 0:00:00]} Na7 {[%emt 0:00:00]}
23. Bd7 {[%emt 0:00:00]} Rb7 {[%emt 0:00:00]} 24. Ba4 {[%emt 0:00:00]} Bg5 {
[%emt 0:00:00]} 25. Ne3 {[%emt 0:00:00]} Bxe3 {[%emt 0:00:00]} 26. fxe3 {
[%emt 0:00:00]} Rc7 {[%emt 0:00:00]} 27. Rc1 {[%emt 0:00:00]} Qb6 {[%emt 0:00:
00]} 28. Rxc7 {[%emt 0:00:00]} Qxc7 {[%emt 0:00:00]} 29. Rf1 {[%emt 0:00:00]}
Rc8 {[%emt 0:00:00]} 30. Rf2 {[%emt 0:00:00]} h6 {[%emt 0:00:00]} 31. Qe2 {
[%emt 0:00:00]} Qe7 {[%emt 0:00:00]} 32. Qa6 {[%emt 0:00:00]} Rc5 {[%emt 0:00:
00]} 33. Qb6 {[%emt 0:00:00]} Qc7 {[%emt 0:00:00]} 34. Qa6 {[%emt 0:00:00]} Kf8
{[%emt 0:00:00]} 35. Qe2 {[%emt 0:00:00]} Rc3 {[%emt 0:00:00]} 36. Qf3 {
[%emt 0:00:00]} Qe7 {[%emt 0:00:00]} 37. g4 {[%emt 0:00:26]} Kg8 {[%emt 0:00:
02]} 38. Kh3 {[%emt 0:00:05]} Nc8 {[%emt 0:00:12]} 39. Kg2 {[%emt 0:00:30]} Nb6
{[%emt 0:00:02]} 40. Bb5 {[%emt 0:00:17]} Nd7 {[%emt 0:00:06]} 41. Qf5 {
[%emt 0:00:45]} Nf8 {[%emt 0:01:13]} 42. Rf3 {[%emt 0:00:18]} Nh7 {[%emt 0:00:
08]} 43. Bc6 {[%emt 0:01:08]} Ng5 {[%emt 0:00:02]} 44. Rf2 {[%emt 0:00:17]}
Rxe3 {[%emt 0:00:15]} 45. Bd7 {[%emt 0:00:07]} Nxe4 {[%emt 0:00:55]} 46. Rc2 {
[%emt 0:00:02]} Nc5 {[%emt 0:00:03]} 47. Bb5 {[%emt 0:00:04]} Qg5 {[%emt 0:00:
51]} 48. Qc8+ {[%emt 0:00:06]} Kh7 {[%emt 0:00:00]} 49. Rxc5 {[%emt 0:00:03]}
dxc5 {[%emt 0:00:23]} 50. d6 {[%emt 0:00:00]} Qf4 {[%emt 0:00:06]} 51. Qf5+ {
[%emt 0:00:13]} Qxf5 52. gxf5 {[%emt 0:00:01]} Re4 {[%emt 0:00:02]} 0-1